bitfinex-derivatives/quotes_BTCF0:USTF0_20210409
["timestamp","ask_amount","ask_price","bid_price","bid_amount"]
[1617975229066,0.4715275,58608.0,58607.0,1.03118915]
[1617975229256,0.80951375,58608.0,58607.0,3.75598915]
[1617975229859,0.36427095,58608.0,58607.0,3.75598915]
[1617975230057,0.42805889,58608.0,58607.0,3.75598915]
[1617975230260,0.36427095,58608.0,58607.0,3.75598915]
[1617975232958,0.36427095,58608.0,58607.0,4.19065548]
[1617975233358,0.36427095,58608.0,58607.0,3.75598915]
[1617975233559,0.36427095,58608.0,58607.0,1.03118915]
[1617975233961,1.87033579,58608.0,58607.0,1.03118915]
[1617975234458,1.87033579,58608.0,58607.0,0.67457055]
[1617975234860,1.97829234,58608.0,58607.0,0.67457055]
[1617975235758,6.77299234,58608.0,58607.0,0.40457055]
[1617975236094,6.94465651,58608.0,58607.0,0.10295655]
[1617975236308,2.14995651,58608.0,58607.0,0.10295655]
[1617975236561,5.27099234,58608.0,58607.0,0.39951097]
[1617975236959,5.44265798,58608.0,58607.0,0.39951097]
[1617975239665,5.44265798,58608.0,58607.0,0.10295655]
[1617975240064,4.44265798,58608.0,58607.0,0.10295655]
[1617975240265,5.44265798,58608.0,58607.0,0.10295655]
[1617975243067,5.44265798,58608.0,58607.0,0.39939557]
[1617975243869,5.44265798,58608.0,58607.0,0.10295655]
[1617975244068,5.44265798,58608.0,58607.0,0.39933007]
[1617975244770,5.44265798,58608.0,58607.0,0.10295655]
[1617975245171,5.44265798,58608.0,58607.0,0.39924572]
[1617975246574,5.33540143,58608.0,58607.0,0.39924572]
[1617975246778,4.33540143,58608.0,58607.0,0.39924572]
[1617975246976,4.16373579,58608.0,58607.0,0.7545858]
[1617975247276,3.71848537,58608.0,58607.0,0.7545858]
[1617975248176,3.71848537,58608.0,58607.0,1.0245858]
[1617975248379,3.2934,58608.0,58607.0,0.37295655]
[1617975248577,3.65762336,58608.0,58607.0,1.02412093]
[1617975249076,0.36492336,58608.0,58607.0,1.02412093]
[1617975249377,0.36492336,58608.0,58607.0,4.38458093]
[1617975249579,0.36492336,58608.0,58607.0,4.81847116]
[1617975249876,0.4257329,58608.0,58607.0,4.90968547]
[1617975250278,0.0007,58608.0,58607.0,4.90968547]
[1617975250578,0.0007,58608.0,58607.0,1.68568547]
[1617975250778,0.0007,58608.0,58607.0,1.59447116]
[1617975251178,0.36495185,58608.0,58607.0,1.59447116]
[1617975252682,0.36495185,58608.0,58607.0,4.61437116]
[1617975252882,0.42576144,58608.0,58607.0,4.70558555]
[1617975254282,0.42576144,58608.0,58607.0,4.75668555]
[1617975254785,0.42576144,58608.0,58607.0,4.70558555]
[1617975254983,0.06150959,58608.0,58607.0,4.70558555]
[1617975255683,0.06150959,58608.0,58607.0,4.73308555]
[1617975256784,0.42584603,58608.0,58607.0,4.73308555]
[1617975259189,1.42584603,58608.0,58607.0,4.73308555]
[1617975259790,0.42584603,58608.0,58607.0,4.73308555]
[1617975260392,0.0007,58608.0,58607.0,4.73308555]
[1617975261794,0.06150969,58608.0,58607.0,4.73308555]
[1617975262493,0.0007,58608.0,58607.0,4.73308555]
[1617975262999,0.36507754,58608.0,58607.0,4.73308555]
[1617975263194,0.06151027,58608.0,58607.0,4.73308555]
[1617975263896,0.0007,58608.0,58607.0,4.73308555]
[1617975272507,0.0007,58608.0,58607.0,1.71318555]
[1617975273012,0.0007,58608.0,58607.0,3.11259486]
[1617975273172,0.0007,58608.0,58607.0,3.31259486]
[1617975273508,0.0007,58608.0,58607.0,2.40380081]
[1617975273911,0.0007,58608.0,58607.0,2.31259486]
[1617975274310,0.0007,58608.0,58607.0,2.11259486]
[1617975277014,2.9191,58608.0,58607.0,2.11259486]
[1617975277219,3.04674,58608.0,58607.0,1.97613486]
[1617975278514,3.04674,58608.0,58607.0,1.48551116]
[1617975279429,3.09734,58608.0,58607.0,1.48551116]
[1617975279842,3.04674,58608.0,58607.0,1.48551116]
[1617975281016,0.12834,58608.0,58607.0,1.48551116]
[1617975281317,0.12834,58608.0,58607.0,4.57461116]
[1617975281616,0.12834,58608.0,58607.0,4.66582388]
[1617975282818,0.12834,58608.0,58607.0,1.57672388]
[1617975283019,0.12834,58608.0,58607.0,5.06551116]
[1617975283220,0.12834,58608.0,58607.0,5.15672125]
[1617975284218,0.0007,58608.0,58607.0,5.15672125]
[1617975287224,0.09507,58608.0,58607.0,5.15672125]
[1617975289427,0.0007,58608.0,58607.0,5.15672125]
[1617975300539,0.0007,58608.0,58607.0,1.57672125]
[1617975300839,2.5434,58608.0,58607.0,1.48551116]
[1617975304346,0.0007,58608.0,58607.0,1.48551116]
[1617975306248,0.0007,58608.0,58607.0,1.97630534]
[1617975308750,0.0007,58608.0,58607.0,5.47380534]
[1617975309053,0.0007,58608.0,58607.0,5.56501038]
[1617975311454,0.0007,58608.0,58607.0,2.06751038]
[1617975311753,0.0007,58608.0,58607.0,2.09887534]
[1617975318464,0.0007,58608.0,58607.0,3.09887534]
[1617975318998,0.0007,58608.0,58607.0,2.09887534]
[1617975321767,0.0007,58608.0,58607.0,3.64903053]
[1617975322467,0.0007,58608.0,58607.0,3.09887534]
[1617975322966,0.0007,58608.0,58607.0,2.09887534]
[1617975327574,0.0007,58608.0,58607.0,0.52302655]
[1617975327774,0.0007,58608.0,58607.0,2.09413083]
[1617975328075,0.0007,58608.0,58607.0,5.06193083]
[1617975328274,0.0007,58608.0,58607.0,5.21392357]
[1617975330373,0.0007,58608.0,58607.0,5.35578353]
[1617975330975,0.0007,58608.0,58607.0,5.21392357]
[1617975332877,0.0007,58608.0,58607.0,5.35578364]
[1617975334176,0.0007,58608.0,58607.0,5.21392357]
[1617975335276,0.0007,58608.0,58607.0,5.76385913]
[1617975335477,0.0007,58608.0,58607.0,5.21392357]
[1617975335678,0.0007,58608.0,58607.0,6.35578308]
[1617975336179,0.0007,58608.0,58607.0,5.35578308]
[1617975336380,0.0007,58608.0,58607.0,5.21392357]
[1617975336678,0.0007,58608.0,58607.0,5.76409592]
[1617975337279,0.0007,58608.0,58607.0,6.76409592]
[1617975337479,0.0007,58608.0,58607.0,6.9059556]
[1617975340181,0.0007,58608.0,58607.0,5.9059556]
[1617975340583,0.0007,58608.0,58607.0,5.76409592]
[1617975340783,0.0007,58608.0,58607.0,5.21392357]
[1617975341784,0.0007,58608.0,58607.0,6.21392357]
[1617975342385,0.36406189,58626.0,58607.0,6.90578449]
[1617975342584,0.36406189,58626.0,58625.0,0.64817856]
[1617975342787,0.36406189,58626.0,58625.0,0.76719856]
[1617975342987,0.36404044,58628.0,58625.0,1.4691403]
[1617975343187,0.36403778,58629.0,58625.0,1.4691403]
[1617975343388,0.3640396,58630.0,58628.0,3.3672]
[1617975343686,0.36398783,58632.0,58629.0,1.33807496]
[1617975343886,0.36398783,58632.0,58629.0,1.60807496]
[1617975344088,0.42476523,58634.0,58631.0,1.0785603]
[1617975344290,0.42476523,58634.0,58633.0,0.64704002]
[1617975344291,0.36397644,58634.0,58633.0,0.64704002]
[1617975344492,0.36389548,58635.0,58633.0,0.64704002]
[1617975344710,0.36389601,58634.0,58633.0,0.06078855]
[1617975344992,0.36389531,58635.0,58633.0,0.97768753]
[1617975345192,0.44473934,58639.0,58634.0,0.70777342]
[1617975345394,0.36383418,58635.0,58634.0,0.06078858]
[1617975345793,0.36383418,58635.0,58634.0,0.70759177]
[1617975345994,0.36383418,58635.0,58634.0,0.91680319]
[1617975346197,0.36383418,58635.0,58634.0,0.97759185]
[1617975346602,0.36378136,58636.0,58634.0,0.97759185]
[1617975346802,0.36378332,58635.0,58634.0,0.27]
[1617975346998,0.36378332,58635.0,58634.0,0.91660805]
[1617975347199,0.36378332,58635.0,58634.0,3.90970805]
[1617975347399,0.06078866,58648.0,58634.0,3.90970805]
[1617975347400,0.36378864,58636.0,58634.0,3.90970805]
[1617975347598,0.36372672,58637.0,58634.0,4.17970805]
[1617975347799,0.36372672,58637.0,58636.0,0.10725655]
[1617975348104,0.36372672,58637.0,58636.0,0.46187982]
[1617975348304,0.36372672,58637.0,58636.0,0.73187982]
[1617975348798,0.19102672,58637.0,58636.0,0.73187982]
[1617975350099,0.3636235,58638.0,58636.0,1.08440599]
[1617975350400,0.06078669,58637.0,58636.0,0.37725655]
[1617975350800,0.36357906,58637.0,58636.0,0.6715612]
[1617975351101,3.30066604,58637.0,58636.0,0.6715612]
[1617975351302,0.36357744,58638.0,58636.0,1.02478368]
[1617975351507,0.36353081,58639.0,58636.0,4.32598368]
[1617975351702,0.36352018,58640.0,58638.0,0.29443375]
[1617975351902,0.36352018,58640.0,58639.0,0.29439513]
[1617975352101,0.36352018,58640.0,58639.0,0.56439513]
[1617975352405,0.07,58649.0,58639.0,0.56439513]
[1617975352406,0.36350689,58641.0,58639.0,0.91768823]
[1617975352602,0.36343541,58643.0,58640.0,0.70821657]
[1617975353004,0.36343424,58644.0,58642.0,0.29427697]
[1617975353419,0.36343424,58644.0,58643.0,0.56422332]
[1617975353821,0.36343424,58644.0,58643.0,0.40147987]
[1617975354304,0.36343424,58644.0,58643.0,0.67147987]
[1617975354505,0.36331606,58645.0,58643.0,0.67147987]
[1617975355806,0.36331606,58645.0,58643.0,0.37725655]
[1617975356205,0.36331606,58645.0,58643.0,0.67126358]
[1617975357207,0.36321334,58646.0,58643.0,0.67126358]
[1617975357409,3.99576653,58647.0,58643.0,0.67126358]
[1617975357608,0.36316653,58647.0,58643.0,0.67126358]
[1617975357809,0.36316653,58647.0,58645.0,3.0309]
[1617975358208,0.36316653,58647.0,58646.0,0.27]
[1617975360312,0.423877,58647.0,58646.0,0.27]
[1617975360511,0.36309562,58647.0,58644.0,0.27]
[1617975360711,0.36309562,58647.0,58646.0,3.4314]
[1617975360912,0.36309562,58647.0,58646.0,3.7014]
[1617975361112,0.36309562,58647.0,58646.0,3.4314]
[1617975361513,0.36309562,58647.0,58646.0,3.7014]
[1617975361719,0.06078144,58648.0,58646.0,3.7014]
[1617975361720,0.42388624,58648.0,58646.0,3.7014]
[1617975362116,0.07,58649.0,58646.0,3.99497121]
[1617975362516,0.07,58649.0,58648.0,0.29351168]
[1617975362915,0.07,58649.0,58648.0,0.56351168]
[1617975363316,0.07,58649.0,58648.0,0.62428741]
[1617975364517,0.07,58649.0,58648.0,0.97626649]
[1617975364918,0.07,58649.0,58648.0,0.62428741]
[1617975367220,0.1216,58649.0,58648.0,0.62428741]
[1617975367441,0.34757274,58658.0,58648.0,0.62428741]
[1617975367752,0.36270984,58659.0,58658.0,0.10725655]
[1617975368420,0.36270984,58659.0,58658.0,0.37725655]
[1617975369421,0.36264084,58662.0,58658.0,0.37725655]
[1617975369921,0.36257555,58663.0,58658.0,0.37725655]
[1617975371623,0.36254322,58662.0,58658.0,0.37725655]
[1617975371824,0.3624867,58663.0,58661.0,2.6594]
[1617975374525,0.3624867,58663.0,58662.0,0.27]
[1617975375429,0.36239089,58665.0,58662.0,0.27]
[1617975375628,0.33489089,58665.0,58662.0,0.27]
[1617975375828,0.33489089,58665.0,58664.0,0.10725655]
[1617975376527,0.39566094,58665.0,58664.0,0.10725655]
[1617975376954,1.33489089,58665.0,58664.0,0.10725655]
[1617975377144,0.3956605,58665.0,58664.0,0.10725655]
[1617975377353,0.33489089,58665.0,58664.0,0.10725655]
[1617975378137,1.33489089,58665.0,58664.0,0.10725655]
[1617975378534,1.39566119,58665.0,58664.0,0.10725655]
[1617975378732,0.39566119,58665.0,58664.0,0.10725655]
[1617975379132,0.33489089,58665.0,58664.0,0.10725655]
[1617975379432,0.39566141,58665.0,58664.0,0.10725655]
[1617975379632,0.33489089,58665.0,58664.0,0.10725655]
[1617975380733,1.33489089,58665.0,58664.0,0.10725655]
[1617975381032,1.39565804,58665.0,58664.0,0.10725655]
[1617975382133,0.39565804,58665.0,58664.0,0.10725655]
[1617975382533,0.33489089,58665.0,58664.0,0.10725655]
[1617975383035,0.42301541,58666.0,58664.0,0.10725655]
[1617975383235,1.42301541,58666.0,58664.0,0.10725655]
[1617975383434,0.42303279,58665.0,58664.0,0.10725655]
[1617975383634,1.36224993,58666.0,58664.0,0.10725655]
[1617975384335,1.0,58665.0,58664.0,0.10725655]
[1617975385135,1.36224993,58666.0,58664.0,0.10725655]
[1617975386035,0.36224993,58666.0,58664.0,0.10725655]
[1617975386735,0.36224993,58666.0,58665.0,0.27]
[1617975386938,0.44273133,58671.0,58665.0,0.27]
[1617975387136,1.0,58673.0,58665.0,0.27]
[1617975387351,0.06076262,58672.0,58665.0,0.27]
[1617975387836,0.44270894,58678.0,58677.0,0.10725655]
[1617975388037,1.0,58680.0,58677.0,0.10725655]
[1617975388038,0.44269497,58679.0,58677.0,0.10725655]
[1617975388238,1.44269497,58679.0,58677.0,0.10725655]
[1617975388536,0.10725655,58681.0,58677.0,0.10725655]
[1617975388537,1.5034536,58678.0,58677.0,0.10725655]
[1617975389338,1.5034536,58678.0,58677.0,2.79545655]
[1617975389737,0.5034536,58678.0,58677.0,2.79545655]
[1617975390138,1.5034536,58678.0,58677.0,2.79545655]
[1617975390540,1.44269342,58678.0,58677.0,2.79545655]
[1617975390743,1.50345402,58678.0,58677.0,2.79545655]
[1617975391241,1.50345402,58678.0,58677.0,0.10725655]
[1617975391642,0.50345402,58678.0,58677.0,0.10725655]
[1617975392041,1.50345402,58678.0,58677.0,0.10725655]
[1617975392243,1.44269342,58678.0,58677.0,0.10725655]
[1617975392542,1.50345316,58678.0,58677.0,0.10725655]
[1617975393146,0.50345316,58678.0,58677.0,2.83615655]
[1617975393543,1.50345316,58678.0,58677.0,2.83615655]
[1617975393744,0.50345316,58678.0,58677.0,2.83615655]
[1617975393944,0.44269342,58678.0,58677.0,0.10725655]
[1617975394546,1.44269342,58678.0,58677.0,0.10725655]
[1617975394846,1.0,58678.0,58677.0,0.10725655]
[1617975395246,1.06076009,58678.0,58677.0,0.10725655]
[1617975395956,1.50352067,58678.0,58677.0,0.10725655]
[1617975396848,1.50352067,58678.0,58677.0,2.76035655]
[1617975399486,0.50352067,58678.0,58677.0,0.10725655]
[1617975399883,4.86502067,58678.0,58677.0,0.10725655]
[1617975400292,5.028801,58678.0,58677.0,0.10725655]
[1617975400450,1.60654091,58678.0,58677.0,0.10725655]
[1617975400851,0.44276058,58678.0,58677.0,2.78335655]
[1617975401651,0.44276058,58678.0,58677.0,0.10725655]
[1617975402053,1.44276058,58678.0,58677.0,0.10725655]
[1617975402453,1.44276058,58678.0,58677.0,3.40095655]
[1617975403153,0.44276058,58678.0,58677.0,3.50434655]
[1617975403355,0.44324638,58679.0,58677.0,3.50434655]
[1617975403556,0.44325779,58686.0,58677.0,0.48064655]
[1617975403754,0.44317599,58687.0,58677.0,0.48064655]
[1617975403954,0.44317599,58687.0,58686.0,0.10725655]
[1617975404454,0.44317599,58687.0,58686.0,0.37725655]
[1617975404654,0.44311512,58689.0,58686.0,0.37725655]
[1617975404957,0.44311512,58689.0,58688.0,2.9956]
[1617975405453,0.44311512,58689.0,58688.0,3.2656]
[1617975406254,1.0,58691.0,58688.0,3.2656]
[1617975406454,1.0,58692.0,58688.0,3.2656]
[1617975406654,0.44313,58689.0,58688.0,3.2656]
[1617975407057,1.44305486,58690.0,58688.0,3.2656]
[1617975407374,0.44305536,58689.0,58688.0,3.2656]
[1617975407957,0.44303337,58690.0,58688.0,3.2656]
[1617975409377,0.15621825,58706.0,58688.0,3.2656]
[1617975409378,0.4430115,58693.0,58688.0,0.27]
[1617975409574,0.4430115,58693.0,58692.0,2.5919]
[1617975409776,0.44298188,58694.0,58692.0,2.5919]
[1617975410061,0.44298188,58694.0,58693.0,0.10725655]
[1617975410462,0.44298188,58694.0,58693.0,0.37725655]
[1617975410662,0.44303429,58695.0,58693.0,0.37725655]
[1617975411396,0.44293285,58696.0,58694.0,3.5347]
[1617975411865,0.35782871,58696.0,58695.0,0.27]
[1617975412011,1.14,58701.0,58700.0,0.10725655]
[1617975413365,0.14,58701.0,58700.0,0.10725655]
[1617975413766,1.64319646,58701.0,58700.0,0.10725655]
[1617975414867,0.64319646,58701.0,58700.0,0.10725655]
[1617975415268,0.14,58701.0,58700.0,0.10725655]
[1617975415468,0.64321567,58701.0,58700.0,0.10725655]
[1617975415678,0.14,58701.0,58700.0,0.10725655]
[1617975416670,1.14,58701.0,58700.0,0.10725655]
[1617975418569,1.23683,58701.0,58700.0,0.10725655]
[1617975418873,4.59943,58701.0,58700.0,0.10725655]
[1617975419070,4.74454082,58701.0,58700.0,0.10725655]
[1617975420072,1.38194082,58701.0,58700.0,0.10725655]
[1617975420372,1.23683,58701.0,58700.0,2.93515655]
[1617975420992,1.14,58701.0,58700.0,2.93515655]
[1617975422110,1.14,58701.0,58700.0,0.10725655]
[1617975422477,1.14,58701.0,58700.0,0.37725655]
[1617975422675,1.14,58701.0,58700.0,3.84225655]
[1617975423884,1.14,58701.0,58700.0,0.37725655]
[1617975425594,1.14,58701.0,58700.0,4.04335655]
[1617975426582,0.14,58701.0,58700.0,4.04335655]
[1617975428903,0.14,58701.0,58700.0,0.37725655]
[1617975435594,0.14,58701.0,58700.0,0.66791536]
[1617975436193,0.14,58701.0,58700.0,0.37725655]
[1617975436394,0.14,58701.0,58700.0,0.66785238]
[1617975436594,0.14,58701.0,58700.0,1.66785238]
[1617975436796,0.14,58701.0,58700.0,0.66785238]
[1617975437093,0.14,58701.0,58700.0,1.01655714]
[1617975437293,0.14,58701.0,58700.0,0.66785238]
[1617975437493,0.14,58701.0,58700.0,1.01652382]
[1617975438096,0.14,58701.0,58700.0,2.01652382]
[1617975438701,0.14,58701.0,58700.0,1.01652382]
[1617975439499,0.05491767,58701.0,58700.0,1.01652382]
[1617975442001,1.0,58726.0,58700.0,1.01652382]
[1617975442200,1.0,58726.0,58725.0,0.10725655]
[1617975442400,0.54901473,58728.0,58725.0,0.05233888]
[1617975442601,0.10725655,58728.0,58725.0,0.32233888]
[1617975442825,0.10725655,58728.0,58727.0,3.5263]
[1617975443010,0.44166822,58735.0,58727.0,3.5263]
[1617975443200,0.44166764,58736.0,58727.0,3.7963]
[1617975443400,0.44166467,58737.0,58727.0,3.7963]
[1617975443720,0.44153169,58738.0,58727.0,3.7963]
[1617975444199,0.10725655,58738.0,58737.0,0.10725655]
[1617975444500,0.10725655,58738.0,58737.0,0.22766655]
[1617975444702,0.15875655,58738.0,58737.0,0.22766655]
[1617975445603,0.15875655,58738.0,58737.0,0.27926655]
[1617975446103,0.60020006,58738.0,58737.0,0.27926655]
[1617975446503,0.60020006,58738.0,58737.0,0.22766655]
[1617975446703,1.54870006,58738.0,58737.0,0.22766655]
[1617975446904,0.54870006,58738.0,58737.0,0.22766655]
[1617975447105,0.54870006,58738.0,58737.0,0.10725655]
[1617975447320,1.54870006,58738.0,58737.0,0.10725655]
[1617975447820,1.59930006,58738.0,58737.0,0.10725655]
[1617975449706,1.54870006,58738.0,58737.0,0.10725655]
[1617975450623,1.60040006,58738.0,58737.0,0.10725655]
[1617975452009,1.54870006,58738.0,58737.0,0.10725655]
[1617975452909,1.60030006,58738.0,58737.0,0.10725655]
[1617975453109,1.54870006,58738.0,58737.0,0.10725655]
[1617975453810,1.54870006,58738.0,58737.0,0.15895655]
[1617975454132,1.54870006,58738.0,58737.0,0.10725655]
[1617975455413,1.10725655,58738.0,58737.0,0.10725655]
[1617975456516,1.54854553,58738.0,58737.0,0.10725655]
[1617975456716,1.10725655,58738.0,58737.0,0.10725655]
[1617975457217,1.54856401,58738.0,58737.0,0.10725655]
[1617975458417,1.54856401,58738.0,58737.0,2.76625655]
[1617975458618,0.54856401,58738.0,58737.0,2.76625655]
[1617975458918,1.10725655,58738.0,58737.0,2.76625655]
[1617975459118,1.54864985,58738.0,58737.0,2.76625655]
[1617975459318,1.10725655,58738.0,58737.0,2.76625655]
[1617975460119,1.54870643,58738.0,58737.0,2.76625655]
[1617975460518,0.54870643,58738.0,58737.0,2.76625655]
[1617975460719,1.10725655,58738.0,58737.0,2.76625655]
[1617975461320,0.10725655,58738.0,58737.0,2.76625655]
[1617975461522,1.30725655,58738.0,58737.0,2.76625655]
[1617975462522,1.74888782,58738.0,58737.0,2.76625655]
[1617975466028,0.74888782,58738.0,58737.0,2.76625655]
[1617975466225,1.74888782,58738.0,58737.0,2.76625655]
[1617975466726,1.74888782,58738.0,58737.0,0.10725655]
[1617975467527,1.88787782,58738.0,58737.0,0.10725655]
[1617975467827,1.68787782,58738.0,58737.0,0.10725655]
[1617975468030,1.24624655,58738.0,58737.0,0.10725655]
[1617975468228,1.68811817,58738.0,58737.0,0.10725655]
[1617975469032,1.68811817,58738.0,58737.0,3.37275655]
[1617975469232,3.18811817,58738.0,58737.0,3.37275655]
[1617975469432,1.68811817,58738.0,58737.0,3.37275655]
[1617975470134,1.74251817,58738.0,58737.0,3.37275655]
[1617975470334,1.30064655,58738.0,58737.0,3.37275655]
[1617975470537,1.16165655,58738.0,58737.0,3.37275655]
[1617975472738,1.60366825,58738.0,58737.0,3.37275655]
[1617975473239,1.16165655,58738.0,58737.0,3.37275655]
[1617975473437,1.60366851,58738.0,58737.0,3.37275655]
[1617975473852,1.16165655,58738.0,58737.0,3.37275655]
[1617975480941,0.16165655,58738.0,58737.0,3.37275655]
[1617975481141,1.16165655,58738.0,58737.0,3.37275655]
[1617975483339,1.0544,58738.0,58737.0,3.37275655]
[1617975487943,0.0910256,58743.0,58737.0,3.31835655]
[1617975488143,1.0,58739.0,58737.0,3.31835655]
[1617975488464,1.0,58738.0,58737.0,3.31835655]
[1617975489143,0.6623134,58745.0,58737.0,3.31835655]
[1617975489346,1.0,58738.0,58737.0,3.31835655]
[1617975490345,0.6108134,58745.0,58737.0,3.31835655]
[1617975490644,1.10725655,58738.0,58737.0,3.31835655]
[1617975493446,0.10725655,58738.0,58737.0,0.05285655]
[1617975493647,1.10725655,58738.0,58737.0,0.05285655]
[1617975500856,2.60725655,58738.0,58737.0,0.05285655]
[1617975501457,2.69826374,58738.0,58737.0,0.05285655]
[1617975501658,1.19826374,58738.0,58737.0,0.05285655]
[1617975501856,2.60725655,58738.0,58737.0,0.05285655]
[1617975502156,2.69826422,58738.0,58737.0,0.05285655]
[1617975503056,1.19826422,58738.0,58737.0,0.05285655]
[1617975503259,1.10725655,58738.0,58737.0,0.05285655]
[1617975503958,2.60725655,58738.0,58737.0,0.05285655]
[1617975504160,2.69826309,58738.0,58737.0,0.05285655]
[1617975504957,2.69826309,58738.0,58737.0,3.27195655]
[1617975506159,1.19826309,58738.0,58737.0,3.27195655]
[1617975506359,2.69826309,58738.0,58737.0,3.27195655]
[1617975506662,2.74916467,58738.0,58735.0,0.2912978]
[1617975506860,8.2348,58737.0,58735.0,0.2912978]
[1617975507060,1.5,58736.0,58735.0,0.1660978]
[1617975507260,2.61874,58736.0,58735.0,0.1660978]
[1617975507461,2.61874,58736.0,58713.0,0.54369314]
[1617975507462,8.12359564,58736.0,58727.0,0.35007438]
[1617975507718,8.12359564,58736.0,58699.0,0.68070018]
[1617975507719,0.50488998,58733.0,58726.0,0.3503131]
[1617975507918,1.5,58732.0,58726.0,0.3503131]
[1617975508090,1.5,58732.0,58727.0,0.350265]
[1617975508281,1.0,58728.0,58727.0,0.06067861]
[1617975508487,0.10725655,58727.0,58726.0,0.35032871]
[1617975508663,1.60725655,58727.0,58726.0,0.35032871]
[1617975508864,2.60725655,58727.0,58726.0,0.35032871]
[1617975509570,2.60725655,58727.0,58725.0,0.35029701]
[1617975510174,1.0,58726.0,58725.0,0.35029701]
[1617975510377,2.5,58726.0,58725.0,0.35029701]
[1617975512868,2.5,58726.0,58722.0,0.35039514]
[1617975513569,0.09102607,58725.0,58722.0,0.35039514]
[1617975513769,0.09102607,58725.0,58718.0,0.10725655]
[1617975513770,0.09102607,58725.0,58721.0,0.35057806]
[1617975514070,1.0,58722.0,58721.0,0.35057806]
[1617975514371,2.64829,58722.0,58721.0,0.35057806]
[1617975515172,2.64829,58722.0,58720.0,0.35052307]
[1617975515873,1.0,58721.0,58719.0,0.35054207]
[1617975516081,1.5,58720.0,58718.0,0.45788921]
[1617975516274,2.8334,58719.0,58718.0,0.35063266]
[1617975516574,5.44065655,58719.0,58718.0,0.35063266]
[1617975516975,5.64065655,58719.0,58718.0,0.35063266]
[1617975517376,10.64065655,58719.0,58716.0,0.35067345]
[1617975517777,10.64065655,58719.0,58713.0,0.35081491]
[1617975518194,10.64065655,58719.0,58712.0,0.3508836]
[1617975518614,10.64065655,58719.0,58693.0,0.54581894]
[1617975518615,0.10725655,58713.0,58711.0,0.35092653]
[1617975518778,1.7,58712.0,58711.0,0.35092653]
[1617975518977,1.7,58712.0,58696.0,0.10725655]
[1617975518978,2.5,58712.0,58710.0,0.35087098]
[1617975519378,2.5,58712.0,58697.0,0.06069349]
[1617975519379,2.5,58712.0,58708.0,0.35096547]
[1617975519781,2.5516,58712.0,58706.0,0.350898]
[1617975520082,1.0,58709.0,58705.0,0.35095368]
[1617975520280,1.5,58708.0,58705.0,0.35095368]
[1617975520679,0.10725655,58706.0,58705.0,0.35095368]
[1617975520879,0.10725655,58706.0,58700.0,0.42936147]
[1617975520880,1.60725655,58706.0,58704.0,0.35168404]
[1617975521090,1.60725655,58706.0,58705.0,0.06069774]
[1617975521410,1.60725655,58706.0,58686.0,0.09104661]
[1617975521411,7.60725655,58706.0,58702.0,0.35184972]
[1617975521828,7.60725655,58706.0,58674.0,0.68415223]
[1617975521829,7.60725655,58706.0,58700.0,0.35210417]
[1617975521997,7.60725655,58706.0,58698.0,0.35205156]
[1617975522180,6.0,58701.0,58698.0,0.35205156]
[1617975522385,1.5,58700.0,58699.0,0.35198572]
[1617975522680,1.60725655,58700.0,58698.0,0.35202828]
[1617975522880,2.60725655,58700.0,58698.0,0.35202828]
[1617975523080,2.60725655,58700.0,58696.0,0.35197506]
[1617975523281,1.0,58699.0,58695.0,0.3519428]
[1617975523503,1.5,58698.0,58695.0,0.3519428]
[1617975523882,1.5,58698.0,58694.0,0.351825]
[1617975524084,1.5,58698.0,58692.0,0.35196061]
[1617975524582,1.10725655,58693.0,58692.0,0.35196061]
[1617975524788,1.10725655,58693.0,58690.0,0.35190757]
[1617975524789,2.71503655,58693.0,58690.0,0.35190757]
[1617975526086,2.71503655,58693.0,58689.0,0.35189311]
[1617975526400,1.0,58691.0,58689.0,0.35189311]
[1617975526600,1.5,58690.0,58689.0,0.35189311]
[1617975526987,1.5,58690.0,58688.0,0.35177616]
[1617975527185,1.5,58690.0,58689.0,0.41246275]
[1617975527386,4.8254,58690.0,58689.0,0.06070747]
[1617975527587,4.8254,58690.0,58688.0,0.35184988]
[1617975527786,4.8254,58690.0,58687.0,0.35173053]
[1617975528486,1.0,58688.0,58687.0,0.35173053]
[1617975528687,2.5,58688.0,58686.0,0.35163755]
[1617975529386,2.5,58688.0,58684.0,0.10725655]
[1617975530489,1.0,58685.0,58684.0,0.10725655]
[1617975530689,1.10725655,58685.0,58684.0,0.10725655]
[1617975533089,0.10725655,58685.0,58684.0,0.10725655]
[1617975533290,1.10725655,58685.0,58684.0,0.10725655]
[1617975533690,0.10725655,58685.0,58684.0,0.10725655]
[1617975533891,1.10725655,58685.0,58684.0,0.10725655]
[1617975534091,2.60725655,58685.0,58684.0,0.10725655]
[1617975535295,1.10725655,58685.0,58684.0,0.10725655]
[1617975538796,1.10725655,58685.0,58680.0,0.29273821]
[1617975538997,1.0,58681.0,58680.0,0.29273821]
[1617975539197,2.62878,58681.0,58680.0,0.29273821]
[1617975539598,2.62878,58681.0,58679.0,0.29285213]
[1617975539815,2.62878,58681.0,58678.0,0.29290272]
[1617975539999,2.62878,58681.0,58674.0,0.29309047]
[1617975540198,1.0,58680.0,58674.0,0.29309047]
[1617975540401,1.62878,58681.0,58675.0,0.29307254]
[1617975540402,1.0,58679.0,58675.0,0.29307254]
[1617975540601,1.0,58679.0,58674.0,0.29307923]
[1617975540799,1.10725655,58676.0,58674.0,0.29307923]
[1617975541899,1.10725655,58676.0,58675.0,0.29297293]
[1617975542800,4.46705655,58676.0,58675.0,0.29297293]
[1617975542999,4.46705655,58676.0,58674.0,0.2929812]
[1617975543599,1.0,58675.0,58673.0,0.40027792]
[1617975543799,1.5,58675.0,58673.0,0.40027792]
[1617975544000,2.5,58675.0,58673.0,0.40027792]
[1617975544202,2.5,58675.0,58673.0,0.10725655]
[1617975544203,0.8964,58674.0,58673.0,0.10725655]
[1617975544402,2.3533,58674.0,58673.0,0.10725655]
[1617975544602,2.5,58674.0,58673.0,0.10725655]
[1617975545302,1.5,58674.0,58673.0,0.10725655]
[1617975545705,2.5,58674.0,58673.0,0.10725655]
[1617975546103,2.7588,58669.0,58667.0,0.29326003]
[1617975546403,2.7588,58669.0,58625.0,1.97749828]
[1617975546404,1.5,58668.0,58665.0,0.2933557]
[1617975546804,0.10725655,58666.0,58663.0,0.35190176]
[1617975547102,1.5,58665.0,58663.0,0.35190176]
[1617975547402,1.5,58665.0,58664.0,0.29324577]
[1617975548005,1.0,58665.0,58664.0,0.29324577]
[1617975548206,0.10725655,58666.0,58664.0,0.29324577]
[1617975548404,1.0,58665.0,58664.0,0.29324577]
[1617975548617,1.0,58665.0,58662.0,0.41265565]
[1617975548805,1.5,58665.0,58664.0,0.35399329]